fUST/lending_fUST_20260114
["ID","MTS","AMOUNT","RATE_DAILY","PERIOD"]
[401793052,1768377051551,-2000.0,0.0002,7]
[401793054,1768377051561,-454.65002405,0.00020034,4]
[401793056,1768377051570,-454.65002405,0.00020034,4]
[401793058,1768377051580,-1293.62411873,0.00020069,2]
[401793060,1768377051589,-551.0,0.00020153,2]
[401793062,1768377051598,-454.65002405,0.00020223,4]
[401793064,1768377051607,-454.65002405,0.00020223,4]
[401793066,1768377051617,-200.91058964,0.00020274,2]
[401793068,1768377051630,-4946.58201638,0.00020274,2]
[401793070,1768377051639,-5402.72600724,0.00020274,2]
[401793072,1768377051647,-6500.0,0.00020274,2]
[401793074,1768377051657,-491.12165105,0.00020325,22]
[401793076,1768377051666,-7000.0,0.00020396,2]
[401793078,1768377051676,-2073.24025849,0.00020396,2]
[401793080,1768377051684,-2116.0,0.000204,2]
[401793082,1768377051694,-507.1352,0.00020411,5]
[401793084,1768377051705,-507.1352,0.00020411,5]
[401793086,1768377051716,-507.1352,0.00020411,5]
[401793088,1768377051725,-199.9795,0.00020411,5]
[401793090,1768377051733,-1000.0,0.00020412,2]
[401793092,1768377051743,-1000.0,0.00020412,2]
[401793094,1768377051751,-454.65002405,0.00020412,4]
[401793096,1768377051760,-454.65002405,0.00020412,4]
[401793098,1768377051769,-10173.656674,0.00020549,7]
[401793100,1768377051778,-454.65002404,0.00020601,4]
[401793102,1768377051787,-454.65002405,0.00020601,4]
[401793104,1768377051796,-4046.54,0.000208,2]
[401793106,1768377051805,-267.88,0.000208,2]
[401793108,1768377051814,-253.24,0.000208,2]
[401793110,1768377051823,-1000.0,0.00020822,2]
[401793112,1768377051832,-7000.0,0.00020822,2]
[401793114,1768377051841,-40340.44,0.000209,2]
[401793116,1768377051851,-2116.0,0.000209,2]
[401793118,1768377051859,-1060.1,0.00020933,2]
[401793120,1768377051868,-2183.87260271,0.00020944,2]
[401793122,1768377051877,-491.12165105,0.00020972,23]
[401793124,1768377051887,-2000.0,0.00021,2]
[401793126,1768377051896,-2000.0,0.00021,7]
[401793128,1768377051905,-14150.53090947,0.0002133,2]
[401793130,1768377051914,-7500.0,0.0002137,2]
[401793131,1768377051923,-151.0,0.0002137,2]
[401793133,1768377051933,-633.503416,0.0002137,2]
[401793135,1768377051942,-633.503416,0.0002137,2]
[401793137,1768377051951,-633.503416,0.0002137,2]
[401793139,1768377051962,-633.503416,0.0002137,2]
[401793141,1768377051971,-2116.0,0.000214,2]
[401793143,1768377051982,-4427.0,0.0002157,2]
[401793145,1768377051992,-491.12165105,0.0002162,25]
[401793147,1768377052001,-2000.0,0.00021795,3]
[401793149,1768377052011,-2000.0,0.00021804,3]
[401793151,1768377052020,-2000.0,0.00021812,3]
[401793153,1768377052030,-10000.0,0.00021818,2]
[401793155,1768377052039,-2000.0,0.00021821,3]
[401793157,1768377052048,-2000.0,0.0002183,3]
[401793159,1768377052058,-2000.0,0.00021839,3]
[401793161,1768377052067,-2000.0,0.00021848,3]
[401793163,1768377052077,-886.569727,0.00021856,2]
[401793165,1768377052086,-886.569727,0.00021856,2]
[401793167,1768377052095,-886.569727,0.00021856,2]
[401793169,1768377052105,-886.569727,0.00021856,2]
[401793171,1768377052116,-2000.0,0.00021856,3]
[401793173,1768377052128,-629.0,0.00021861,2]
[401793175,1768377052137,-1367.0,0.00021861,2]
[401793177,1768377052146,-2147.0,0.00021861,2]
[401793179,1768377052155,-1082.98429516,0.00021864,2]
[401793181,1768377052165,-2000.0,0.00021865,3]
[401793183,1768377052174,-2000.0,0.00021874,3]
[401793185,1768377052183,-2000.0,0.00021883,3]
[401793187,1768377052192,-2000.0,0.00021892,3]
[401793189,1768377052201,-2116.0,0.000219,2]
[401793191,1768377052213,-2000.0,0.000219,3]
[401793193,1768377052223,-2000.0,0.00021909,3]
[401793195,1768377052232,-151.0,0.00021918,2]
[401793197,1768377052241,-176.527375,0.00021918,2]
[401793199,1768377052251,-151.0,0.00021918,2]
[401793201,1768377052260,-151.0,0.00021918,2]
[401793203,1768377052269,-151.0,0.00021918,2]
[401793204,1768377052278,-151.0,0.00021918,2]
[401793206,1768377052287,-151.0,0.00021918,2]
[401793208,1768377052296,-218.78,0.00021918,2]
[401793210,1768377052305,-151.0,0.00021918,2]
[401793212,1768377052314,-151.0,0.00021918,2]
[401793214,1768377052323,-151.0,0.00021918,2]
[401793216,1768377052332,-151.0,0.00021918,2]
[401793218,1768377052341,-151.0,0.00021918,2]
[401793220,1768377052350,-151.0,0.00021918,2]
[401793222,1768377052359,-163.463878,0.00021918,2]
[401793224,1768377052368,-151.0,0.00021918,2]
[401793226,1768377052377,-155.262134,0.00021918,2]
[401793228,1768377052386,-151.0,0.00021918,2]
[401793230,1768377052395,-151.0,0.00021918,2]
[401793232,1768377052404,-151.0,0.00021918,2]
[401793234,1768377052413,-151.0,0.00021918,2]
[401793236,1768377052422,-151.0,0.00021918,2]
[401793238,1768377052431,-166.519335,0.00021918,2]
[401793240,1768377052440,-151.0,0.00021918,2]
[401793242,1768377052449,-151.0,0.00021918,2]
[401793244,1768377052458,-151.0,0.00021918,2]
[401793246,1768377052467,-151.0,0.00021918,2]
[401793248,1768377052476,-221.765393,0.00021918,2]
[401793250,1768377052485,-160.546344,0.00021918,2]
[401793252,1768377052493,-151.0,0.00021918,2]
[401793254,1768377052503,-151.0,0.00021918,2]
[401793256,1768377052512,-151.0,0.00021918,2]
[401793257,1768377052522,-151.0,0.00021918,2]
[401793259,1768377052531,-151.0,0.00021918,2]
[401793261,1768377052540,-151.0,0.00021918,2]
[401793263,1768377052549,-151.0,0.00021918,2]
[401793265,1768377052558,-151.0,0.00021918,2]
[401793267,1768377052567,-151.0,0.00021918,2]
[401793269,1768377052576,-151.0,0.00021918,2]
[401793271,1768377052585,-151.0,0.00021918,2]
[401793273,1768377052594,-151.0,0.00021918,2]
[401793275,1768377052603,-151.0,0.00021918,2]
[401793277,1768377052612,-151.0,0.00021918,2]
[401793278,1768377052621,-259.92206125,0.00021918,2]
[401793280,1768377052632,-151.0,0.00021918,2]
[401793282,1768377052640,-151.0,0.00021918,2]
[401793284,1768377052649,-151.0,0.00021918,2]
[401793286,1768377052659,-151.0,0.00021918,2]
[401793288,1768377052668,-151.0,0.00021918,2]
[401793290,1768377052677,-160.471335,0.00021918,2]
[401793292,1768377052686,-151.0,0.00021918,2]
[401793294,1768377052695,-155.547049,0.00021918,2]
[401793296,1768377052705,-151.0,0.00021918,2]
[401793298,1768377052714,-151.0,0.00021918,2]
[401793300,1768377052722,-151.0,0.00021918,2]
[401793302,1768377052731,-169.388304,0.00021918,2]
[401793304,1768377052740,-151.0,0.00021918,2]
[401793306,1768377052748,-151.0,0.00021918,2]
[401793308,1768377052758,-151.0,0.00021918,2]
[401793309,1768377052766,-151.0,0.00021918,2]
[401793311,1768377052775,-151.0,0.00021918,2]
[401793313,1768377052784,-174.038823,0.00021918,2]
[401793315,1768377052793,-151.0,0.00021918,2]
[401793317,1768377052802,-174.038823,0.00021918,2]
[401793319,1768377052811,-174.038823,0.00021918,2]
[401793321,1768377052819,-174.038823,0.00021918,2]
[401793332,1768377052906,-174.038823,0.00021918,2]
[401793333,1768377052916,-174.038823,0.00021918,2]
[401793335,1768377052925,-174.038823,0.00021918,2]
[401793337,1768377052934,-174.038823,0.00021918,2]
[401793339,1768377052943,-216.477356,0.00021918,2]
[401793341,1768377052954,-216.477356,0.00021918,2]
[401793343,1768377052964,-216.477356,0.00021918,2]
[401793345,1768377052973,-216.477356,0.00021918,2]
[401793347,1768377052982,-216.477356,0.00021918,2]
[401793349,1768377052991,-216.477356,0.00021918,2]
[401793351,1768377053001,-216.477356,0.00021918,2]
[401793353,1768377053010,-216.477356,0.00021918,2]
[401793355,1768377053019,-216.477356,0.00021918,2]
[401793357,1768377053029,-216.477356,0.00021918,2]
[401793359,1768377053038,-216.477356,0.00021918,2]
[401793361,1768377053048,-382.165336,0.00021918,2]
[401793363,1768377053057,-216.477356,0.00021918,2]
[401793365,1768377053067,-382.165336,0.00021918,2]
[401793367,1768377053076,-382.165336,0.00021918,2]
[401793369,1768377053085,-382.165336,0.00021918,2]
[401793371,1768377053094,-382.165336,0.00021918,2]
[401793373,1768377053103,-382.165336,0.00021918,2]
[401793375,1768377053112,-382.165336,0.00021918,2]
[401793376,1768377053121,-382.165336,0.00021918,2]
[401793378,1768377053132,-382.165336,0.00021918,2]
[401793380,1768377053142,-382.165336,0.00021918,2]
[401793382,1768377053153,-382.165336,0.00021918,2]
[401793384,1768377053163,-382.165336,0.00021918,2]
[401793386,1768377053172,-181.655666,0.00021918,2]
[401793388,1768377053182,-151.0,0.00021918,2]
[401793390,1768377053191,-183.080684,0.00021918,2]
[401793392,1768377053201,-151.0,0.00021918,2]
[401793394,1768377053211,-257.762103,0.00021918,2]
[401793396,1768377053220,-151.0,0.00021918,2]
[401793398,1768377053230,-151.0,0.00021918,2]
[401793400,1768377053239,-151.0,0.00021918,2]
[401793402,1768377053255,-151.0,0.00021918,2]
[401793404,1768377053264,-151.0,0.00021918,2]
[401793406,1768377053275,-151.0,0.00021918,2]
[401793408,1768377053285,-879.438014,0.00021918,2]
[401793410,1768377053295,-879.438014,0.00021918,2]
[401793411,1768377053305,-879.438014,0.00021918,2]
[401793412,1768377053315,-879.438014,0.00021918,2]
[401793413,1768377053324,-879.438014,0.00021918,2]
[401793414,1768377053335,-879.438014,0.00021918,2]
[401793415,1768377053345,-879.438014,0.00021918,2]
[401793416,1768377053354,-879.438014,0.00021918,2]
[401793417,1768377053364,-879.438014,0.00021918,2]
[401793418,1768377053374,-879.438014,0.00021918,2]
[401793419,1768377053384,-879.438014,0.00021918,2]
[401793420,1768377053393,-879.438014,0.00021918,2]
[401793421,1768377053403,-152.928665,0.00021918,2]
[401793422,1768377053412,-839.619726,0.00021918,2]
[401793423,1768377053422,-839.619726,0.00021918,2]
[401793424,1768377053432,-839.619726,0.00021918,2]
[401793425,1768377053441,-839.619726,0.00021918,2]
[401793426,1768377053450,-839.619726,0.00021918,2]
[401793427,1768377053460,-839.619726,0.00021918,2]
[401793428,1768377053470,-839.619726,0.00021918,2]
[401793429,1768377053479,-839.619726,0.00021918,2]
[401793430,1768377053488,-839.619726,0.00021918,2]
[401793431,1768377053498,-839.619726,0.00021918,2]
[401793432,1768377053507,-839.619726,0.00021918,2]
[401793433,1768377053516,-839.619726,0.00021918,2]
[401793435,1768377053526,-275.55471384,0.00021918,2]
[401793436,1768377053535,-151.0,0.00021918,2]
[401793437,1768377053545,-151.0,0.00021918,2]
[401793439,1768377053554,-151.0,0.00021918,2]
[401793440,1768377053564,-151.0,0.00021918,2]
[401793443,1768377053574,-151.0,0.00021918,2]
[401793445,1768377053584,-151.0,0.00021918,2]
[401793447,1768377053594,-151.0,0.00021918,2]
[401793449,1768377053604,-151.0,0.00021918,2]
[401793450,1768377053615,-151.0,0.00021918,2]
[401793453,1768377053627,-151.0,0.00021918,2]
[401793454,1768377053636,-151.0,0.00021918,2]
[401793457,1768377053646,-151.0,0.00021918,2]
[401793458,1768377053657,-151.0,0.00021918,2]
[401793460,1768377053666,-151.0,0.00021918,2]
[401793462,1768377053676,-230.012904,0.00021918,2]
[401793464,1768377053686,-151.0,0.00021918,2]
[401793467,1768377053696,-151.0,0.00021918,2]
[401793469,1768377053705,-241.541461,0.00021918,2]
[401793471,1768377053715,-151.0,0.00021918,2]
[401793473,1768377053725,-151.0,0.00021918,2]
[401793474,1768377053734,-151.0,0.00021918,2]
[401793476,1768377053744,-151.0,0.00021918,2]
[401793479,1768377053754,-151.0,0.00021918,2]
[401793480,1768377053764,-151.0,0.00021918,2]
[401793482,1768377053774,-151.0,0.00021918,2]
[401793484,1768377053784,-151.0,0.00021918,2]
[401793487,1768377053794,-195.880562,0.00021918,2]
[401793489,1768377053803,-406.316369,0.00021918,2]
[401793490,1768377053813,-406.316369,0.00021918,2]
[401793492,1768377053822,-406.316369,0.00021918,2]
[401793494,1768377053831,-406.316369,0.00021918,2]
[401793496,1768377053840,-406.316369,0.00021918,2]
[401793498,1768377053849,-406.316369,0.00021918,2]
[401793500,1768377053859,-406.316369,0.00021918,2]
[401793502,1768377053868,-406.316369,0.00021918,2]
[401793504,1768377053877,-406.316369,0.00021918,2]
[401793506,1768377053886,-151.3487,0.00021918,2]
[401793508,1768377053895,-151.3487,0.00021918,2]
[401793510,1768377053904,-151.0,0.00021918,2]
[401793512,1768377053913,-151.3487,0.00021918,2]
[401793514,1768377053923,-406.316369,0.00021918,2]
[401793516,1768377053932,-151.0,0.00021918,2]
[401793518,1768377053941,-406.316369,0.00021918,2]
[401793520,1768377053950,-171.590908,0.00021918,2]
[401793522,1768377053959,-151.3487,0.00021918,2]
[401793523,1768377053969,-406.316369,0.00021918,2]
[401793525,1768377053978,-151.3487,0.00021918,2]
[401793527,1768377053988,-151.3487,0.00021918,2]
[401793530,1768377053998,-151.3487,0.00021918,2]
[401793531,1768377054008,-151.3487,0.00021918,2]
[401793534,1768377054018,-151.3487,0.00021918,2]
[401793536,1768377054028,-151.0,0.00021918,2]
[401793538,1768377054038,-151.0,0.00021918,2]
[401793540,1768377054049,-151.0,0.00021918,2]
[401793542,1768377054059,-151.3487,0.00021918,2]
[401793544,1768377054069,-151.3487,0.00021918,2]
[401793546,1768377054079,-151.3487,0.00021918,2]
[401793548,1768377054088,-170.441606,0.00021918,2]
[401793550,1768377054099,-179.049299,0.00021918,2]
[401793552,1768377054108,-179.049299,0.00021918,2]
[401793553,1768377054118,-179.049299,0.00021918,2]
[401793556,1768377054128,-179.049299,0.00021918,2]
[401793557,1768377054137,-179.049299,0.00021918,2]
[401793560,1768377054148,-179.049299,0.00021918,2]
[401793562,1768377054158,-179.049299,0.00021918,2]
[401793564,1768377054168,-179.049299,0.00021918,2]
[401793565,1768377054177,-179.049299,0.00021918,2]
[401793567,1768377054187,-179.049299,0.00021918,2]
[401793569,1768377054196,-179.049299,0.00021918,2]
[401793571,1768377054205,-179.049299,0.00021918,2]
[401793573,1768377054216,-171.320259,0.00021918,2]
[401793575,1768377054225,-151.0,0.00021918,2]
[401793577,1768377054234,-151.0,0.00021918,2]
[401793579,1768377054244,-162.301205,0.00021918,2]
[401793581,1768377054254,-151.0,0.00021918,2]
[401793583,1768377054263,-151.0,0.00021918,2]
[401793585,1768377054273,-151.0,0.00021918,2]
[401793587,1768377054283,-151.0,0.00021918,2]
[401793589,1768377054293,-151.0,0.00021918,2]
[401793591,1768377054302,-171.876779,0.00021918,2]
[401793593,1768377054312,-151.0,0.00021918,2]
[401793595,1768377054321,-151.0,0.00021918,2]
[401793597,1768377054330,-461.991157,0.00021918,2]
[401793599,1768377054339,-151.0,0.00021918,2]
[401793601,1768377054348,-461.991157,0.00021918,2]
[401793611,1768377054430,-154.979883,0.00021918,2]
[401793613,1768377054439,-461.991157,0.00021918,2]
[401793615,1768377054450,-461.991157,0.00021918,2]
[401793617,1768377054459,-151.0,0.00021918,2]
[401793619,1768377054468,-461.991157,0.00021918,2]
[401793621,1768377054478,-151.0,0.00021918,2]
[401793623,1768377054487,-461.991157,0.00021918,2]
[401793625,1768377054497,-151.0,0.00021918,2]
[401793627,1768377054506,-461.991157,0.00021918,2]
[401793629,1768377054515,-151.0,0.00021918,2]
[401793631,1768377054524,-461.991157,0.00021918,2]
[401793633,1768377054533,-461.991157,0.00021918,2]
[401793635,1768377054542,-151.0,0.00021918,2]
[401793637,1768377054551,-461.991157,0.00021918,2]
[401793639,1768377054560,-151.0,0.00021918,2]
[401793641,1768377054569,-2025.449831,0.00021918,2]
[401793643,1768377054578,-151.0,0.00021918,2]
[401793645,1768377054587,-151.0,0.00021918,2]
[401793646,1768377054595,-225.938304,0.00021918,2]
[401793648,1768377054604,-2025.449831,0.00021918,2]
[401793650,1768377054615,-240.635546,0.00021918,2]
[401793652,1768377054627,-461.991157,0.00021918,2]
[401793654,1768377054636,-461.991157,0.00021918,2]
[401793656,1768377054644,-151.0,0.00021918,2]
[401793658,1768377054654,-151.0,0.00021918,2]
[401793660,1768377054664,-693.510903,0.00021918,2]
[401793662,1768377054673,-2025.449831,0.00021918,2]
[401793664,1768377054682,-2025.449831,0.00021918,2]
[401793666,1768377054693,-2297.615063,0.00021918,2]
[401793668,1768377054702,-151.0,0.00021918,2]
[401793670,1768377054712,-2297.615063,0.00021918,2]
[401793672,1768377054722,-151.0,0.00021918,2]
[401793674,1768377054731,-2025.449831,0.00021918,2]
[401793676,1768377054740,-2025.449831,0.00021918,2]
[401793678,1768377054749,-2297.615063,0.00021918,2]
[401793680,1768377054759,-151.0,0.00021918,2]
[401793682,1768377054768,-2297.615063,0.00021918,2]
[401793684,1768377054777,-151.0,0.00021918,2]
[401793686,1768377054787,-2025.449831,0.00021918,2]
[401793688,1768377054796,-2025.449831,0.00021918,2]
[401793689,1768377054804,-2297.615063,0.00021918,2]
[401793691,1768377054814,-151.0,0.00021918,2]
[401793693,1768377054823,-2297.615063,0.00021918,2]
[401793695,1768377054832,-151.0,0.00021918,2]
[401793697,1768377054841,-2297.615063,0.00021918,2]
[401793699,1768377054851,-2297.615063,0.00021918,2]
[401793701,1768377054860,-240.755518,0.00021918,2]
[401793703,1768377054870,-237.361203,0.00021918,2]
[401793705,1768377054879,-237.361203,0.00021918,2]
[401793707,1768377054888,-237.361203,0.00021918,2]
[401793709,1768377054898,-237.361203,0.00021918,2]
[401793711,1768377054907,-237.361203,0.00021918,2]
[401793713,1768377054916,-237.361203,0.00021918,2]
[401793715,1768377054926,-237.361203,0.00021918,2]
[401793717,1768377054935,-237.361203,0.00021918,2]
[401793719,1768377054945,-151.0,0.00021918,2]
[401793721,1768377054954,-285.638493,0.00021918,2]
[401793723,1768377054964,-151.0,0.00021918,2]
[401793725,1768377054973,-151.0,0.00021918,2]
[401793727,1768377054983,-151.0,0.00021918,2]
[401793729,1768377054992,-151.0,0.00021918,2]
[401793731,1768377055001,-151.0,0.00021918,2]
[401793733,1768377055012,-151.0,0.00021918,2]
[401793735,1768377055021,-151.0,0.00021918,2]
[401793737,1768377055030,-151.0,0.00021918,2]
[401793739,1768377055039,-155.398666,0.00021918,2]
[401793741,1768377055048,-151.0,0.00021918,2]
[401793742,1768377055060,-151.0,0.00021918,2]
[401793744,1768377055069,-151.0,0.00021918,2]
[401793746,1768377055078,-151.0,0.00021918,2]
[401793748,1768377055087,-151.0,0.00021918,2]
[401793750,1768377055097,-151.0,0.00021918,2]
[401793752,1768377055106,-1200.0,0.00021918,2]
[401793754,1768377055116,-8000.0,0.00021918,2]
[401793756,1768377055125,-2000.0,0.00021918,3]
[401793758,1768377055134,-151.0,0.00021918,2]
[401793760,1768377055144,-151.0,0.00021918,2]
[401793762,1768377055153,-151.0,0.00021918,2]
[401793764,1768377055162,-151.0,0.00021918,2]
[401793766,1768377055171,-151.0,0.00021918,2]
[401793768,1768377055180,-151.0,0.00021918,2]
[401793770,1768377055190,-151.0,0.00021918,2]
[401793772,1768377055199,-151.0,0.00021918,2]
[401793774,1768377055208,-255.526264,0.00021918,2]
[401793775,1768377055217,-151.0,0.00021918,2]
[401793777,1768377055227,-174.038823,0.00021918,2]
[401793779,1768377055235,-291.05514,0.00021918,2]
[401793781,1768377055245,-174.038823,0.00021918,2]
[401793783,1768377055255,-174.038823,0.00021918,2]
[401793785,1768377055271,-174.038823,0.00021918,2]
[401793787,1768377055280,-151.0,0.00021918,2]
[401793789,1768377055290,-151.0,0.00021918,2]
[401793791,1768377055299,-151.0,0.00021918,2]
[401793794,1768377055309,-151.0,0.00021918,2]
[401793796,1768377055317,-151.000082,0.00021918,2]
[401793798,1768377055327,-151.0,0.00021918,2]
[401793800,1768377055337,-151.0,0.00021918,2]
[401793801,1768377055346,-151.0,0.00021918,2]
[401793803,1768377055356,-2025.449831,0.00021918,2]
[401793806,1768377055365,-151.0,0.00021918,2]
[401793808,1768377055375,-2025.449831,0.00021918,2]
[401793809,1768377055384,-2297.615063,0.00021918,2]
[401793811,1768377055394,-151.0,0.00021918,2]
[401793813,1768377055403,-2025.449831,0.00021918,2]
[401793814,1768377055412,-2297.615063,0.00021918,2]
[401793816,1768377055422,-151.0,0.00021918,2]
[401793818,1768377055432,-164.655046,0.00021918,2]
[401793820,1768377055441,-2025.449831,0.00021918,2]
[401793822,1768377055450,-151.0,0.00021918,2]
[401793824,1768377055461,-2297.615063,0.00021918,2]
[401793826,1768377055470,-151.0,0.00021918,2]
[401793828,1768377055480,-151.0,0.00021918,2]
[401793831,1768377055490,-2297.615063,0.00021918,2]
[401793832,1768377055500,-177.23153386,0.00021918,2]
[401793834,1768377055509,-237.361203,0.00021918,2]
[401793837,1768377055519,-237.361203,0.00021918,2]
[401793838,1768377055528,-237.361203,0.00021918,2]
[401793841,1768377055537,-237.361203,0.00021918,2]
[401793842,1768377055547,-151.0,0.00021959,2]
[401793844,1768377055556,-200.0,0.00021959,3]
[401793846,1768377055566,-200.0,0.00021959,3]
[401793848,1768377055576,-200.0,0.00021959,3]
[401793850,1768377055585,-200.0,0.00021959,3]
[401793853,1768377055595,-200.0,0.00021959,3]
[401793854,1768377055605,-200.0,0.00021959,3]
[401793856,1768377055615,-2113.56,0.00022,7]
[401793859,1768377055630,-2000.0,0.00022,7]
[401793861,1768377055640,-1060.1,0.00022057,2]
[401793862,1768377055649,-1416.17798261,0.00022069,2]
[401793864,1768377055658,-155.181558,0.00022165,2]
[401793866,1768377055667,-491.12165105,0.00022268,26]
[401793868,1768377055676,-2116.0,0.000224,2]
[401793870,1768377055686,-1000.0,0.00022453,10]
[401793872,1768377055695,-1000.0,0.00022453,10]
[401793874,1768377055704,-579.0,0.00022453,10]
[401793876,1768377055714,-300.0,0.00022466,2]
[401793878,1768377055723,-200.0,0.00022466,2]
[401793880,1768377055732,-1864.52541442,0.00022466,2]
[401793890,1768377055813,-267.88,0.000225,7]
[401793892,1768377055822,-253.24,0.000225,7]
[401793894,1768377055831,-491.12165105,0.00022916,27]
[401793896,1768377055840,-1041.66666667,0.00023,3]
[401793897,1768377055849,-2116.0,0.00023,2]
[401793899,1768377055858,-2000.0,0.00023,7]
[401793901,1768377055867,-450.0,0.00023014,2]
[401793903,1768377055876,-1400.0,0.00023014,2]
[401793905,1768377055885,-250.0,0.00023014,2]
[401793907,1768377055894,-40340.44,0.000231,2]
[401793909,1768377055903,-167.76,0.000231,7]
[401793911,1768377055912,-500.0,0.00023146,2]
[401793912,1768377055921,-182.95072115,0.0002315,2]
[401793914,1768377055930,-500.0,0.00023163,2]
[401793915,1768377055939,-1060.1,0.00023181,2]
[401793917,1768377055948,-508.66826773,0.00023323,5]
[401793919,1768377055958,-1300.0,0.0002333,2]
[401793920,1768377055967,-500.0,0.00023333,2]
[401793922,1768377055977,-1300.0,0.00023386,2]
[401793924,1768377055985,-500.0,0.00023398,2]
[401793925,1768377055995,-1300.0,0.00023402,2]
[401793927,1768377056004,-728.0,0.00023476,3]
[401793929,1768377056013,-500.0,0.00023496,2]
[401793930,1768377056022,-2116.0,0.000235,2]
[401793932,1768377056031,-600.0,0.00023562,2]
[401793934,1768377056041,-210.92385342,0.00023562,2]
[401793936,1768377056050,-491.12165105,0.00023564,29]
[401793937,1768377056059,-500.0,0.00023573,2]
[401793939,1768377056069,-500.0,0.00023577,2]
[401793941,1768377056078,-4046.54,0.000236,14]
[401793942,1768377056087,-151.0,0.000236,2]
[401793944,1768377056096,-151.0,0.000236,2]
[401793946,1768377056105,-500.0,0.0002364,2]
[401793948,1768377056114,-2916.3971575,0.00023661,2]
[401793949,1768377056124,-1300.0,0.00023676,2]
[401793951,1768377056133,-791.34915639,0.00023692,2]
[401793953,1768377056142,-6198.0,0.00023725,2]
[401793954,1768377056151,-1300.0,0.0002379,2]
[401793956,1768377056161,-728.0,0.00023796,3]
[401793958,1768377056170,-500.0,0.00023847,2]
[401793960,1768377056180,-1300.0,0.00023849,2]
[401793961,1768377056189,-522.88356834,0.00023857,2]
[401793963,1768377056199,-1300.0,0.00023864,2]
[401793965,1768377056207,-499.3,0.00023865,2]
[401793966,1768377056217,-1300.0,0.00023873,2]
[401793968,1768377056227,-14150.53090947,0.00023875,2]
[401793970,1768377056236,-160.0,0.00023894,3]
[401793971,1768377056246,-1300.0,0.00023905,2]
[401793973,1768377056256,-1300.0,0.00023927,2]
[401793975,1768377056265,-500.0,0.00023941,2]
[401793976,1768377056275,-1300.0,0.00023942,2]
[401793978,1768377056285,-500.0,0.00023954,2]
[401793980,1768377056294,-2916.3971575,0.00023981,2]
[401793982,1768377056303,-500.0,0.00023994,2]
[401793983,1768377056312,-1041.66666667,0.00024,7]
[401793985,1768377056321,-2116.0,0.00024,2]
[401793986,1768377056330,-1025.12327186,0.00024,2]
[401793988,1768377056339,-2000.0,0.00024,7]
[401793990,1768377056348,-500.0,0.00024025,2]
[401793991,1768377056358,-1300.0,0.00024107,2]
[401793993,1768377056367,-750.0,0.0002411,2]
[401793995,1768377056376,-1601.4141805,0.0002411,2]
[401793997,1768377056386,-1300.0,0.00024113,2]
[401793999,1768377056395,-500.0,0.00024164,2]
[401794000,1768377056404,-1300.0,0.00024185,2]
[401794002,1768377056413,-491.12165105,0.00024211,30]
[401794004,1768377056423,-1300.0,0.00024265,2]
[401794005,1768377056433,-160.0,0.00024285,4]
[401794007,1768377056442,-1060.1,0.00024305,2]
[401794009,1768377056450,-1300.0,0.0002432,2]
[401794011,1768377056460,-2916.3971575,0.00024371,2]
[401794013,1768377056469,-500.0,0.00024404,2]
[401794015,1768377056478,-1300.0,0.00024424,2]
[401794016,1768377056488,-330.0,0.00024429,2]